fUST/lending_fUST_20250522
["ID","MTS","AMOUNT","RATE_DAILY","PERIOD"]
[361910416,1747884638193,-526.69529902,0.0002219,2]
[361910417,1747884638203,-402.19344007,0.0002219,2]
[361910418,1747884638212,-430.0,0.0002219,2]
[361910420,1747884638222,-430.0,0.0002219,2]
[361910422,1747884638231,-400.0,0.0002219,2]
[361910423,1747884638240,-403.30277511,0.0002219,2]
[361910424,1747884638250,-504.72464948,0.0002219,2]
[361910425,1747884638259,-402.93463033,0.0002219,2]
[361910426,1747884638269,-403.39943242,0.0002219,2]
[361910428,1747884638278,-430.0,0.0002219,2]
[361910429,1747884638287,-504.24243056,0.0002219,2]
[361910430,1747884638296,-442.41529662,0.0002219,2]
[361910431,1747884638306,-430.0,0.0002219,2]
[361910432,1747884638315,-408.27688063,0.0002219,2]
[361910433,1747884638325,-430.0,0.0002219,2]
[361910434,1747884638334,-450.0,0.0002219,2]
[361910435,1747884638345,-430.0,0.0002219,2]
[361910436,1747884638354,-403.04431192,0.0002219,2]
[361910437,1747884638363,-430.0,0.0002219,2]
[361910438,1747884638373,-430.0,0.0002219,2]
[361910439,1747884638382,-450.0,0.0002219,2]
[361910440,1747884638391,-430.0,0.0002219,2]
[361910441,1747884638400,-430.0,0.0002219,2]
[361910442,1747884638410,-430.0,0.0002219,2]
[361910443,1747884638419,-505.3036288,0.0002219,2]
[361910444,1747884638429,-453.93,0.0002219,2]
[361910445,1747884638438,-430.0,0.0002219,2]
[361910446,1747884638447,-508.52002369,0.0002219,2]
[361910447,1747884638457,-430.0,0.0002219,2]
[361910448,1747884638467,-402.56902387,0.0002219,2]
[361910449,1747884638477,-403.41986618,0.0002219,2]
[361910450,1747884638487,-400.0,0.0002219,2]
[361910451,1747884638496,-430.0,0.0002219,2]
[361910452,1747884638506,-404.144865,0.0002219,2]
[361910453,1747884638515,-514.42813496,0.0002219,2]
[361910454,1747884638525,-300.0,0.0002219,2]
[361910455,1747884638535,-400.0,0.0002219,2]
[361910456,1747884638551,-430.0,0.0002219,2]
[361910457,1747884638571,-507.20234837,0.0002219,2]
[361910458,1747884638590,-430.0,0.0002219,2]
[361910459,1747884638604,-921.43,0.0002219,2]
[361910460,1747884638614,-507.80685342,0.0002219,2]
[361910461,1747884638626,-450.0,0.0002219,2]
[361910462,1747884638636,-413.47027403,0.0002219,2]
[361910463,1747884638645,-453.47222805,0.0002219,2]
[361910464,1747884638654,-506.0801411,0.0002219,2]
[361910465,1747884638665,-430.0,0.0002219,2]
[361910466,1747884638675,-401.61404697,0.0002219,2]
[361910467,1747884638684,-430.0,0.0002219,2]
[361910468,1747884638694,-430.0,0.0002219,2]
[361910469,1747884638703,-430.0,0.0002219,2]
[361910470,1747884638713,-1321.89,0.0002219,2]
[361910471,1747884638723,-430.0,0.0002219,2]
[361910472,1747884638733,-450.0,0.0002219,2]
[361910473,1747884638742,-430.0,0.0002219,2]
[361910474,1747884638752,-405.44391375,0.0002219,2]
[361910475,1747884638762,-430.0,0.0002219,2]
[361910476,1747884638771,-430.0,0.0002219,2]
[361910477,1747884638780,-430.92896836,0.0002219,2]
[361910478,1747884638790,-376.97075569,0.0002219,2]
[361910479,1747884638799,-430.0,0.0002219,2]
[361910480,1747884638809,-524.38796701,0.0002219,2]
[361910481,1747884638818,-430.0,0.0002219,2]
[361910482,1747884638827,-430.0,0.0002219,2]
[361910483,1747884638836,-450.0,0.0002219,2]
[361910484,1747884638846,-430.0,0.0002219,2]
[361910485,1747884638858,-430.0,0.0002219,2]
[361910486,1747884638867,-430.0,0.0002219,2]
[361910487,1747884638877,-430.0,0.0002219,2]
[361910488,1747884638886,-450.0,0.0002219,2]
[361910489,1747884638896,-430.0,0.0002219,2]
[361910490,1747884638905,-430.0,0.0002219,2]
[361910491,1747884638915,-403.05686967,0.0002219,2]
[361910492,1747884638924,-505.315503,0.0002219,2]
[361910493,1747884638936,-158.00075902,0.0002219,2]
[361910494,1747884638945,-430.0,0.0002219,2]
[361910495,1747884638955,-345.61744052,0.0002219,2]
[361910496,1747884638964,-430.0,0.0002219,2]
[361910497,1747884638974,-430.0,0.0002219,2]
[361910498,1747884638983,-400.0,0.0002219,2]
[361910499,1747884638993,-211.35,0.00022191,2]
[361910500,1747884639002,-430.0,0.00022191,2]
[361910501,1747884639012,-516.13,0.00022191,2]
[361910502,1747884639021,-430.0,0.00022191,2]
[361910503,1747884639031,-483.17,0.00022191,2]
[361910504,1747884639041,-430.0,0.00022191,2]
[361910505,1747884639050,-205.43,0.00022191,2]
[361910506,1747884639059,-447.57,0.00022191,2]
[361910507,1747884639068,-430.0,0.00022191,2]
[361910508,1747884639078,-418.86418021,0.00022191,2]
[361910509,1747884639088,-430.0,0.00022191,2]
[361910510,1747884639097,-431.51526081,0.00022191,2]
[361910511,1747884639107,-307.45481803,0.00022191,2]
[361910512,1747884639116,-430.0,0.00022191,2]
[361910513,1747884639125,-430.0,0.00022191,2]
[361910514,1747884639135,-248.03,0.00022191,2]
[361910515,1747884639144,-516.52436106,0.00022191,2]
[361910516,1747884639153,-430.0,0.00022191,2]
[361910517,1747884639163,-431.40357897,0.00022191,2]
[361910518,1747884639172,-523.10685768,0.00022191,2]
[361910519,1747884639181,-375.64,0.00022191,2]
[361910520,1747884639190,-152.55,0.00022191,2]
[361910521,1747884639200,-430.0,0.00022191,2]
[361910522,1747884639209,-430.0,0.00022191,2]
[361910523,1747884639218,-430.0,0.00022191,2]
[361910524,1747884639228,-430.0,0.00022191,2]
[361910525,1747884639237,-430.0,0.00022191,2]
[361910526,1747884639246,-430.0,0.00022191,2]
[361910527,1747884639255,-430.0,0.00022191,2]
[361910528,1747884639265,-430.0,0.00022191,2]
[361910529,1747884639274,-558.48076791,0.00022191,2]
[361910530,1747884639283,-430.0,0.00022191,2]
[361910531,1747884639293,-430.0,0.00022191,2]
[361910532,1747884639303,-430.0,0.00022191,2]
[361910533,1747884639312,-430.0,0.00022191,2]
[361910534,1747884639321,-430.0,0.00022191,2]
[361910535,1747884639331,-430.0,0.00022191,2]
[361910536,1747884639340,-430.0,0.00022191,2]
[361910537,1747884639349,-430.0,0.00022191,2]
[361910538,1747884639359,-430.0,0.00022191,2]
[361910539,1747884639368,-430.0,0.00022191,2]
[361910540,1747884639378,-285.9579736,0.00022191,2]
[361910541,1747884639387,-430.0,0.00022191,2]
[361910542,1747884639398,-430.0,0.00022191,2]
[361910543,1747884639407,-430.0,0.00022191,2]
[361910544,1747884639521,-430.0,0.00022191,2]
[361910545,1747884639531,-430.0,0.00022191,2]
[361910546,1747884639541,-430.0,0.00022191,2]
[361910547,1747884639551,-430.0,0.00022191,2]
[361910548,1747884639560,-430.0,0.00022191,2]
[361910549,1747884639570,-430.0,0.00022191,2]
[361910550,1747884639580,-430.0,0.00022191,2]
[361910551,1747884639591,-430.0,0.00022191,2]
[361910552,1747884639600,-430.0,0.00022191,2]
[361910553,1747884639610,-430.0,0.00022191,2]
[361910554,1747884639619,-430.0,0.00022191,2]
[361910555,1747884639635,-430.0,0.00022191,2]
[361910556,1747884639645,-430.0,0.00022191,2]
[361910557,1747884639655,-430.0,0.00022191,2]
[361910558,1747884639665,-430.0,0.00022191,2]
[361910559,1747884639674,-430.0,0.00022191,2]
[361910560,1747884639684,-430.0,0.00022191,2]
[361910561,1747884639694,-430.0,0.00022191,2]
[361910562,1747884639703,-430.0,0.00022191,2]
[361910563,1747884639713,-425.0,0.00022191,2]
[361910564,1747884639724,-430.0,0.00022191,2]
[361910565,1747884639733,-430.0,0.00022191,2]
[361910566,1747884639743,-430.0,0.00022191,2]
[361910567,1747884639752,-430.0,0.00022191,2]
[361910568,1747884639764,-430.0,0.00022191,2]
[361910569,1747884639773,-430.0,0.00022191,2]
[361910570,1747884639782,-430.0,0.00022191,2]
[361910571,1747884639792,-430.0,0.00022191,2]
[361910572,1747884639802,-430.0,0.00022191,2]
[361910574,1747884639811,-470.0,0.00022191,2]
[361910575,1747884639820,-430.0,0.00022191,2]
[361910576,1747884639829,-430.0,0.00022191,2]
[361910577,1747884639838,-430.0,0.00022191,2]
[361910578,1747884639848,-430.0,0.00022191,2]
[361910579,1747884639860,-470.0,0.00022191,2]
[361910580,1747884639870,-430.0,0.00022191,2]
[361910581,1747884639879,-430.0,0.00022191,2]
[361910582,1747884639888,-430.0,0.00022191,2]
[361910583,1747884639898,-430.0,0.00022191,2]
[361910584,1747884639907,-384.20434416,0.00022191,2]
[361910585,1747884639916,-430.0,0.00022191,2]
[361910586,1747884639925,-430.0,0.00022191,2]
[361910587,1747884639936,-380.31616048,0.00022191,2]
[361910588,1747884639947,-430.0,0.00022191,2]
[361910589,1747884639956,-430.0,0.00022191,2]
[361910590,1747884639966,-430.0,0.00022191,2]
[361910591,1747884639975,-430.0,0.00022191,2]
[361910593,1747884639984,-430.0,0.00022191,2]
[361910595,1747884639994,-398.74362186,0.00022191,2]
[361910597,1747884640003,-2102.75,0.00022191,2]
[361910599,1747884640013,-430.0,0.00022191,2]
[361910601,1747884640023,-430.0,0.00022191,2]
[361910603,1747884640034,-430.0,0.00022191,2]
[361910605,1747884640043,-430.0,0.00022191,2]
[361910607,1747884640055,-470.0,0.00022191,2]
[361910609,1747884640064,-470.0,0.00022191,2]
[361910610,1747884640074,-430.0,0.00022191,2]
[361910613,1747884640083,-430.0,0.00022191,2]
[361910615,1747884640092,-430.0,0.00022191,2]
[361910617,1747884640102,-380.73392419,0.00022191,2]
[361910619,1747884640111,-430.0,0.00022191,2]
[361910621,1747884640121,-430.0,0.00022191,2]
[361910623,1747884640130,-430.0,0.00022191,2]
[361910625,1747884640140,-430.0,0.00022191,2]
[361910627,1747884640150,-430.0,0.00022191,2]
[361910629,1747884640160,-430.0,0.00022191,2]
[361910631,1747884640169,-430.0,0.00022191,2]
[361910633,1747884640179,-430.0,0.00022191,2]
[361910635,1747884640188,-430.0,0.00022191,2]
[361910637,1747884640197,-430.0,0.00022191,2]
[361910639,1747884640206,-446.98,0.00022191,2]
[361910641,1747884640216,-430.0,0.00022191,2]
[361910643,1747884640225,-430.0,0.00022191,2]
[361910645,1747884640234,-430.0,0.00022191,2]
[361910647,1747884640243,-430.0,0.00022191,2]
[361910649,1747884640252,-513.23,0.00022191,2]
[361910651,1747884640262,-430.0,0.00022191,2]
[361910653,1747884640271,-430.0,0.00022191,2]
[361910655,1747884640281,-430.0,0.00022191,2]
[361910657,1747884640290,-430.0,0.00022191,2]
[361910659,1747884640300,-1133.27,0.00022191,2]
[361910661,1747884640310,-430.0,0.00022191,2]
[361910663,1747884640320,-430.0,0.00022191,2]
[361910665,1747884640329,-223.49018546,0.00022191,2]
[361910667,1747884640339,-430.0,0.00022191,2]
[361910669,1747884640348,-430.0,0.00022191,2]
[361910671,1747884640358,-430.0,0.00022191,2]
[361910673,1747884640367,-430.0,0.00022191,2]
[361910675,1747884640376,-430.0,0.00022191,2]
[361910677,1747884640386,-430.0,0.00022191,2]
[361910679,1747884640395,-430.0,0.00022191,2]
[361910681,1747884640405,-430.0,0.00022191,2]
[361910683,1747884640415,-430.0,0.00022191,2]
[361910687,1747884640425,-430.0,0.00022191,2]
[361910689,1747884640434,-1754.8,0.00022191,2]
[361910692,1747884640444,-430.0,0.00022191,2]
[361910694,1747884640454,-430.0,0.00022191,2]
[361910697,1747884640463,-430.0,0.00022191,2]
[361910700,1747884640472,-430.0,0.00022191,2]
[361910702,1747884640482,-374.96278666,0.00022191,2]
[361910703,1747884640492,-382.03764993,0.00022191,2]
[361910704,1747884640501,-430.0,0.00022191,2]
[361910706,1747884640510,-430.0,0.00022191,2]
[361910708,1747884640520,-430.0,0.00022191,2]
[361910710,1747884640530,-430.0,0.00022191,2]
[361910712,1747884640539,-430.0,0.00022191,2]
[361910714,1747884640548,-378.36710845,0.00022191,2]
[361910716,1747884640567,-494.71,0.00022191,2]
[361910718,1747884640576,-430.0,0.00022191,2]
[361910720,1747884640585,-430.0,0.00022191,2]
[361910722,1747884640595,-430.0,0.00022191,2]
[361910725,1747884640604,-430.0,0.00022191,2]
[361910727,1747884640614,-430.0,0.00022191,2]
[361910729,1747884640623,-430.0,0.00022191,2]
[361910731,1747884640633,-430.0,0.00022191,2]
[361910733,1747884640642,-384.2046547,0.00022191,2]
[361910735,1747884640652,-561.18857243,0.00022191,2]
[361910737,1747884640661,-430.0,0.00022191,2]
[361910739,1747884640670,-430.0,0.00022191,2]
[361910741,1747884640680,-430.0,0.00022191,2]
[361910743,1747884640689,-430.0,0.00022191,2]
[361910745,1747884640699,-430.0,0.00022191,2]
[361910747,1747884640708,-430.0,0.00022191,2]
[361910749,1747884640717,-430.0,0.00022191,2]
[361910751,1747884640726,-430.0,0.00022191,2]
[361910753,1747884640735,-376.30547701,0.00022191,2]
[361910755,1747884640744,-430.0,0.00022191,2]
[361910756,1747884640754,-430.0,0.00022191,2]
[361910758,1747884640763,-430.0,0.00022191,2]
[361910759,1747884640772,-430.0,0.00022191,2]
[361910761,1747884640783,-430.0,0.00022191,2]
[361910762,1747884640792,-430.0,0.00022191,2]
[361910763,1747884640802,-430.0,0.00022191,2]
[361910764,1747884640812,-568.05,0.00022191,2]
[361910765,1747884640822,-430.0,0.00022191,2]
[361910766,1747884640833,-311.13,0.00022191,2]
[361910767,1747884640842,-627.79,0.00022191,2]
[361910768,1747884640851,-430.0,0.00022191,2]
[361910769,1747884640866,-430.0,0.00022191,2]
[361910770,1747884640875,-430.0,0.00022191,2]
[361910771,1747884640885,-430.0,0.00022191,2]
[361910772,1747884640894,-430.0,0.00022191,2]
[361910773,1747884640904,-430.0,0.00022191,2]
[361910774,1747884640914,-430.0,0.00022191,2]
[361910775,1747884640923,-430.0,0.00022191,2]
[361910776,1747884640933,-430.0,0.00022191,2]
[361910777,1747884640943,-413.90037442,0.00022191,2]
[361910778,1747884640953,-430.0,0.00022191,2]
[361910779,1747884640962,-430.0,0.00022191,2]
[361910780,1747884640972,-430.0,0.00022191,2]
[361910781,1747884640981,-430.0,0.00022191,2]
[361910782,1747884640990,-430.0,0.00022191,2]
[361910783,1747884640999,-430.0,0.00022191,2]
[361910784,1747884641008,-430.0,0.00022191,2]
[361910785,1747884641018,-430.0,0.00022191,2]
[361910786,1747884641027,-444.55157478,0.00022191,2]
[361910787,1747884641037,-415.52409456,0.00022191,2]
[361910788,1747884641048,-430.0,0.00022191,2]
[361910789,1747884641057,-430.0,0.00022191,2]
[361910790,1747884641066,-430.0,0.00022191,2]
[361910791,1747884641076,-430.0,0.00022191,2]
[361910793,1747884641085,-430.0,0.00022191,2]
[361910795,1747884641094,-430.0,0.00022191,2]
[361910796,1747884641103,-430.0,0.00022191,2]
[361910797,1747884641112,-430.0,0.00022191,2]
[361910798,1747884641121,-430.0,0.00022191,2]
[361910799,1747884641130,-430.0,0.00022191,2]
[361910800,1747884641139,-430.0,0.00022191,2]
[361910801,1747884641148,-430.0,0.00022191,2]
[361910802,1747884641157,-521.3,0.00022191,2]
[361910803,1747884641166,-430.0,0.00022191,2]
[361910804,1747884641175,-430.0,0.00022191,2]
[361910805,1747884641183,-462.5465889,0.00022191,2]
[361910806,1747884641192,-430.0,0.00022191,2]
[361910807,1747884641201,-453.73923172,0.00022191,2]
[361910808,1747884641210,-151.0,0.000222,7]
[361910809,1747884641220,-500.80165102,0.00022226,2]
[361910810,1747884641230,-1280.72751852,0.00022245,6]
[361910811,1747884641239,-505.08011426,0.00022343,2]
[361910812,1747884641249,-503.50096044,0.00022367,2]
[361910813,1747884641259,-502.57069536,0.00022367,2]
[361910814,1747884641268,-500.5682512,0.00022388,2]
[361910815,1747884641277,-1280.72751852,0.00022417,7]
[361910816,1747884641287,-430.0,0.00022464,2]
[361910817,1747884641298,-399.64,0.00022464,2]
[361910818,1747884641307,-430.0,0.00022464,2]
[361910819,1747884641316,-430.0,0.00022464,2]
[361910820,1747884641326,-430.0,0.00022464,2]
[361910821,1747884641335,-430.0,0.00022464,2]
[361910822,1747884641344,-430.0,0.00022464,2]
[361910823,1747884641353,-430.0,0.00022464,2]
[361910824,1747884641362,-432.85789592,0.00022464,2]
[361910825,1747884641371,-404.635832,0.00022464,2]
[361910826,1747884641380,-552.75987912,0.00022464,2]
[361910827,1747884641389,-265.01132169,0.00022464,2]
[361910828,1747884641398,-370.0,0.00022464,2]
[361910829,1747884641407,-362.15540799,0.00022464,2]
[361910830,1747884641417,-430.0,0.00022464,2]
[361910831,1747884641427,-430.0,0.00022464,2]
[361910832,1747884641436,-498.61877372,0.00022464,2]
[361910833,1747884641445,-380.8158018,0.00022464,2]
[361910834,1747884641454,-430.0,0.00022464,2]
[361910835,1747884641464,-402.21184469,0.00022464,2]
[361910836,1747884641475,-430.0,0.00022464,2]
[361910837,1747884641484,-430.0,0.00022464,2]
[361910838,1747884641494,-430.0,0.00022464,2]
[361910839,1747884641504,-430.0,0.00022464,2]
[361910840,1747884641514,-370.0,0.00022464,2]
[361910841,1747884641523,-361.75417049,0.00022464,2]
[361910842,1747884641636,-408.25798044,0.00022464,2]
[361910843,1747884641647,-356.28136341,0.00022464,2]
[361910844,1747884641657,-430.0,0.00022464,2]
[361910845,1747884641666,-314.26926806,0.00022464,2]
[361910846,1747884641676,-430.0,0.00022464,2]
[361910847,1747884641685,-453.93,0.00022464,2]
[361910848,1747884641695,-430.0,0.00022464,2]
[361910849,1747884641704,-430.0,0.00022464,2]
[361910850,1747884641714,-430.0,0.00022464,2]
[361910851,1747884641723,-300.0,0.00022464,2]
[361910852,1747884641732,-376.80851865,0.00022464,2]
[361910853,1747884641742,-921.43,0.00022464,2]
[361910854,1747884641752,-430.0,0.00022464,2]
[361910855,1747884641761,-326.48807226,0.00022464,2]
[361910856,1747884641771,-430.0,0.00022464,2]
[361910857,1747884641780,-430.0,0.00022464,2]
[361910858,1747884641789,-430.0,0.00022464,2]
[361910859,1747884641799,-1321.89,0.00022464,2]
[361910860,1747884641808,-451.50454324,0.00022464,2]
[361910861,1747884641818,-430.0,0.00022464,2]
[361910862,1747884641827,-430.0,0.00022464,2]
[361910863,1747884641836,-430.0,0.00022464,2]
[361910864,1747884641845,-371.44406114,0.00022464,2]
[361910865,1747884641858,-430.0,0.00022464,2]
[361910866,1747884641869,-430.0,0.00022464,2]
[361910867,1747884641878,-430.0,0.00022464,2]
[361910868,1747884641887,-430.0,0.00022464,2]
[361910869,1747884641897,-430.0,0.00022464,2]
[361910870,1747884641907,-430.0,0.00022464,2]
[361910871,1747884641916,-430.0,0.00022464,2]
[361910872,1747884641925,-430.0,0.00022464,2]
[361910873,1747884641935,-430.0,0.00022465,2]
[361910874,1747884641945,-175.62,0.00022465,2]
[361910875,1747884641955,-430.0,0.00022465,2]
[361910876,1747884641964,-430.0,0.00022465,2]
[361910877,1747884641973,-340.92,0.00022465,2]
[361910878,1747884641982,-278.14,0.00022465,2]
[361910879,1747884641991,-156.03,0.00022465,2]
[361910880,1747884642000,-430.0,0.00022465,2]
[361910881,1747884642009,-430.0,0.00022465,2]
[361910882,1747884642019,-204.26,0.00022465,2]
[361910883,1747884642028,-430.0,0.00022465,2]
[361910884,1747884642037,-481.14,0.00022465,2]
[361910885,1747884642048,-447.76,0.00022465,2]
[361910886,1747884642058,-298.48,0.00022465,2]
[361910887,1747884642067,-430.0,0.00022465,2]
[361910888,1747884642076,-430.0,0.00022465,2]
[361910889,1747884642085,-430.0,0.00022465,2]
[361910890,1747884642095,-430.0,0.00022465,2]
[361910891,1747884642106,-430.0,0.00022465,2]
[361910892,1747884642115,-430.0,0.00022465,2]
[361910893,1747884642126,-430.0,0.00022465,2]
[361910894,1747884642136,-430.0,0.00022465,2]
[361910895,1747884642146,-430.0,0.00022465,2]
[361910896,1747884642155,-430.0,0.00022465,2]
[361910897,1747884642165,-430.0,0.00022465,2]
[361910898,1747884642175,-532.46,0.00022465,2]
[361910899,1747884642184,-430.0,0.00022465,2]
[361910900,1747884642196,-430.0,0.00022465,2]
[361910901,1747884642206,-430.0,0.00022465,2]
[361910902,1747884642215,-430.0,0.00022465,2]
[361910903,1747884642224,-430.0,0.00022465,2]
[361910904,1747884642233,-430.0,0.00022465,2]
[361910905,1747884642243,-465.24,0.00022465,2]
[361910906,1747884642254,-430.0,0.00022465,2]
[361910907,1747884642263,-430.0,0.00022465,2]
[361910908,1747884642272,-430.0,0.00022465,2]
[361910909,1747884642282,-430.0,0.00022465,2]
[361910910,1747884642292,-427.92,0.00022465,2]
[361910911,1747884642302,-2102.75,0.00022465,2]
[361910912,1747884642311,-430.0,0.00022465,2]
[361910913,1747884642320,-430.0,0.00022465,2]
[361910914,1747884642329,-430.0,0.00022465,2]
[361910915,1747884642338,-430.0,0.00022465,2]
[361910916,1747884642347,-430.0,0.00022465,2]
[361910917,1747884642356,-430.0,0.00022465,2]
[361910918,1747884642366,-430.0,0.00022465,2]
[361910919,1747884642375,-430.0,0.00022465,2]
[361910920,1747884642384,-430.0,0.00022465,2]
[361910921,1747884642393,-199.98,0.00022465,2]
[361910922,1747884642402,-430.0,0.00022465,2]
[361910923,1747884642412,-430.0,0.00022465,2]
[361910924,1747884642421,-430.0,0.00022465,2]
[361910925,1747884642430,-513.23,0.00022465,2]
[361910926,1747884642439,-430.0,0.00022465,2]
[361910927,1747884642449,-430.0,0.00022465,2]
[361910928,1747884642458,-430.0,0.00022465,2]
[361910929,1747884642468,-1133.27,0.00022465,2]
[361910930,1747884642478,-298.96,0.00022465,2]
[361910931,1747884642487,-430.0,0.00022465,2]
[361910932,1747884642496,-430.0,0.00022465,2]
[361910933,1747884642505,-430.0,0.00022465,2]
[361910934,1747884642515,-430.0,0.00022465,2]
[361910935,1747884642524,-430.0,0.00022465,2]
[361910936,1747884642533,-430.0,0.00022465,2]
[361910937,1747884642544,-430.0,0.00022465,2]
[361910938,1747884642553,-430.0,0.00022465,2]
[361910939,1747884642563,-430.0,0.00022465,2]
[361910940,1747884642572,-430.0,0.00022465,2]
[361910941,1747884642582,-1754.8,0.00022465,2]
[361910942,1747884642591,-430.0,0.00022465,2]
[361910943,1747884642600,-430.0,0.00022465,2]
[361910944,1747884642609,-430.0,0.00022465,2]
[361910945,1747884642618,-430.0,0.00022465,2]
[361910946,1747884642627,-468.12,0.00022465,2]
[361910947,1747884642637,-430.0,0.00022465,2]
[361910948,1747884642646,-430.0,0.00022465,2]
[361910949,1747884642655,-430.0,0.00022465,2]
[361910950,1747884642664,-569.4,0.00022465,2]
[361910951,1747884642674,-494.71,0.00022465,2]
[361910952,1747884642683,-430.0,0.00022465,2]
[361910953,1747884642692,-430.0,0.00022465,2]
[361910954,1747884642702,-430.0,0.00022465,2]
[361910955,1747884642711,-516.23723226,0.00022465,2]
[361910956,1747884642720,-430.0,0.00022465,2]
[361910957,1747884642730,-363.22,0.00022465,2]
[361910958,1747884642740,-430.0,0.00022465,2]
[361910959,1747884642749,-430.0,0.00022465,2]
[361910960,1747884642759,-430.0,0.00022465,2]
[361910961,1747884642768,-430.0,0.00022465,2]
[361910962,1747884642777,-430.0,0.00022465,2]
[361910963,1747884642787,-430.0,0.00022465,2]
[361910964,1747884642796,-568.05,0.00022465,2]
[361910965,1747884642806,-430.0,0.00022465,2]
[361910966,1747884642815,-627.79,0.00022465,2]
[361910968,1747884642825,-353.62,0.00022465,2]
[361910969,1747884642834,-430.0,0.00022465,2]
[361910970,1747884642843,-430.0,0.00022465,2]
[361910971,1747884642852,-260.5,0.00022465,2]
[361910972,1747884642864,-462.80588903,0.00022465,2]
[361910973,1747884642873,-430.0,0.00022465,2]
[361910975,1747884642883,-430.0,0.00022465,2]
[361910976,1747884642892,-201.42,0.00022465,2]
[361910977,1747884642903,-430.0,0.00022465,2]
[361910978,1747884642912,-430.0,0.00022465,2]
[361910979,1747884642921,-430.0,0.00022465,2]
[361910980,1747884642931,-430.0,0.00022465,2]
[361910981,1747884642940,-430.0,0.00022465,2]
[361910982,1747884642951,-430.0,0.00022465,2]
[361910983,1747884642961,-521.3,0.00022465,2]
[361910984,1747884642971,-430.0,0.00022465,2]
[361910985,1747884642980,-151.0,0.000225,9]
[361910986,1747884642990,-1280.72751852,0.0002259,7]
[361910989,1747884642999,-160.0,0.00022641,2]
[361910991,1747884643008,-212.4501065,0.00022641,2]
[361910992,1747884643017,-2996.91932525,0.00022641,2]
[361910994,1747884643026,-160.0,0.00022641,2]
[361910996,1747884643035,-160.0,0.00022641,2]
[361910997,1747884643045,-160.0,0.00022641,2]
[361910998,1747884643054,-894.64583333,0.00022641,2]
[361911000,1747884643064,-150.32,0.00022738,2]
[361911002,1747884643073,-430.0,0.00022738,2]
[361911004,1747884643083,-434.95793077,0.00022738,2]
[361911005,1747884643092,-430.0,0.00022738,2]
[361911006,1747884643102,-430.0,0.00022738,2]
[361911007,1747884643112,-453.93,0.00022738,2]
[361911008,1747884643121,-363.92,0.00022738,2]
[361911009,1747884643130,-430.0,0.00022738,2]
[361911010,1747884643139,-304.91553664,0.00022738,2]
[361911011,1747884643148,-921.43,0.00022738,2]
[361911012,1747884643158,-430.0,0.00022738,2]
[361911013,1747884643168,-430.0,0.00022738,2]
[361911014,1747884643177,-1321.89,0.00022738,2]
[361911015,1747884643187,-430.0,0.00022738,2]
[361911016,1747884643196,-403.94,0.00022738,2]
[361911017,1747884643205,-430.0,0.00022739,2]